bitfinex/quotes_SOLUSD_20250831
["timestamp","ask_amount","ask_price","bid_price","bid_amount"]
[1756663528276,3.96827123,205.08,205.04,17.67011058]
[1756663529274,3.96827123,205.08,205.04,13.62559401]
[1756663529477,3.26827123,205.08,205.04,17.67011058]
[1756663529693,3.96827123,205.08,205.04,17.67011058]
[1756663529994,3.26827123,205.08,205.04,17.67011058]
[1756663530176,0.7,205.07,205.04,17.67011058]
[1756663532287,8.92048104,205.09,205.04,17.67011058]
[1756663532288,5.57596447,205.09,205.04,17.67011058]
[1756663532600,4.04451657,205.1,205.05,4.04451657]
[1756663532803,3.26751069,205.09,205.05,4.04451657]
[1756663533191,3.96751069,205.09,205.04,18.50261664]
[1756663533392,3.26751069,205.09,205.05,4.04451657]
[1756663533692,0.7,205.08,205.05,4.04451657]
[1756663534493,0.7,205.08,205.04,17.67011058]
[1756663536495,0.7,205.08,205.04,22.54717919]
[1756663536697,0.7,205.08,205.05,4.04451657]
[1756663537012,0.7,205.08,205.05,4.07451657]
[1756663537681,0.7,205.13,205.07,17.64011058]
[1756663538010,0.7,205.13,205.09,4.04451657]
[1756663538210,3.96784641,205.13,205.09,4.04451657]
[1756663538811,3.26784641,205.13,205.09,4.04451657]
[1756663538993,3.96784641,205.13,205.09,4.04451657]
[1756663539195,18.40481297,205.12,205.09,4.04451657]
[1756663539397,3.26784641,205.11,205.09,4.04451657]
[1756663541094,3.96784641,205.11,205.09,4.04451657]
[1756663541393,3.96784641,205.11,205.08,8.9205697]
[1756663541827,3.26784641,205.11,205.08,8.9205697]
[1756663544010,3.96784641,205.11,205.08,4.04451657]
[1756663544211,3.26784641,205.11,205.1,4.04451657]
[1756663544404,18.40481297,205.12,205.1,4.04451657]
[1756663544705,18.40481297,205.12,205.11,4.04451657]
[1756663545098,18.40481297,205.12,205.11,17.64011058]
[1756663546100,18.40481297,205.12,205.11,18.4710267]
[1756663546318,18.40481297,205.12,205.11,22.51554327]
[1756663546620,18.40481297,205.12,205.11,37.16648527]
[1756663547700,18.40481297,205.12,205.11,74.80648527]
[1756663547905,18.40481297,205.12,205.11,22.51554327]
[1756663548310,19.10481297,205.12,205.1,4.04451657]
[1756663548502,0.7,205.11,205.1,17.64011058]
[1756663548692,0.7,205.11,205.07,13.59559401]
[1756663548894,0.7,205.1,205.08,4.04451657]
[1756663551310,0.7,205.1,205.08,8.92064988]
[1756663551518,19.10481297,205.12,205.09,4.04451657]
[1756663551814,0.7,205.11,205.09,4.04451657]
[1756663552000,0.7,205.1,205.09,4.04451657]
[1756663555323,0.7,205.1,205.08,4.87613331]
[1756663555521,0.7,205.1,205.09,4.04451657]
[1756663559431,0.7,205.1,205.08,8.92064988]
[1756663561135,19.16481297,205.12,205.09,4.04451657]
[1756663561427,19.16481297,205.12,205.09,8.92033995]
[1756663561635,19.16481297,205.12,205.1,4.04451657]
[1756663561806,0.67,205.11,205.09,4.04451657]
[1756663562011,0.67,205.1,205.08,4.04451657]
[1756663562347,18.46481297,205.12,205.08,4.04451657]
[1756663562512,0.67,205.09,205.08,17.64011058]
[1756663565149,18.46481297,205.12,205.08,17.64011058]
[1756663565355,0.67,205.11,205.08,22.5162545]
[1756663565637,0.67,205.1,205.08,22.5162545]
[1756663566740,0.67,205.1,205.08,17.64011058]
[1756663567146,18.46481297,205.12,205.08,17.64011058]
[1756663567326,0.67,205.11,205.08,17.64011058]
[1756663567520,0.67,205.1,205.08,17.64011058]
[1756663575715,18.46481297,205.12,205.09,4.04451657]
[1756663576539,0.67,205.11,205.09,4.04451657]
[1756663576740,0.67,205.1,205.09,4.04451657]
[1756663577349,19.13481297,205.12,205.09,8.92041006]
[1756663577641,18.46481297,205.12,205.11,17.64011058]
[1756663578148,19.13481297,205.12,205.1,4.04451657]
[1756663578440,0.67,205.11,205.1,4.04451657]
[1756663580341,18.46481297,205.12,205.1,4.04451657]
[1756663580543,19.13481297,205.12,205.1,4.04451657]
[1756663581248,0.67,205.11,205.1,4.04451657]
[1756663581943,0.67,205.11,205.1,2.59135712]
[1756663583029,0.67,205.11,205.09,13.59559401]
[1756663583238,3.26135712,205.1,205.06,0.03]
[1756663583423,2.59135712,205.07,205.06,0.03]
[1756663583821,3.26135712,205.07,205.06,0.03]
[1756663584338,0.67,205.07,205.06,0.03]
[1756663585748,3.26135712,205.07,205.06,0.03]
[1756663585953,4.30304485,205.07,205.06,0.03]
[1756663586130,4.72211926,205.07,205.06,0.03]
[1756663586444,8.35516271,205.07,205.06,0.03]
[1756663586824,11.62399296,205.07,205.06,0.03]
[1756663587329,13.23154638,205.07,205.06,0.03]
[1756663587830,8.35345562,205.07,205.06,0.03]
[1756663589324,13.22983929,205.07,205.06,0.03]
[1756663589953,8.35345562,205.07,205.06,0.03]
[1756663593040,13.22983929,205.07,205.06,0.03]
[1756663594928,8.35345562,205.07,205.06,0.03]
[1756663595639,41.86133636,205.07,205.06,0.03]
[1756663596341,38.23,205.07,205.06,0.03]
[1756663596542,41.85835681,205.07,205.06,0.03]
[1756663597365,54.05314532,205.07,205.05,0.03]
[1756663597562,10.9466977,205.06,205.05,0.03]
[1756663597944,11.6066977,205.06,205.05,0.03]
[1756663598144,8.34047607,205.06,205.05,0.03]
[1756663599065,45.90047607,205.06,205.05,0.03]
[1756663599971,50.77709754,205.06,205.05,0.03]
[1756663602977,41.84835681,205.06,205.05,0.03]
[1756663603169,50.77709754,205.06,205.05,0.03]
[1756663604760,46.72497828,205.06,205.05,0.03]
[1756663604962,50.77709754,205.06,205.05,0.03]
[1756663605478,45.90047607,205.06,205.05,0.03]
[1756663605880,50.77709754,205.06,205.05,0.03]
[1756663606477,50.77709754,205.06,205.04,0.03]
[1756663606478,54.03993046,205.06,205.04,0.03]
[1756663606671,7.68047607,205.05,205.04,0.03]
[1756663607064,9.58897856,205.05,205.04,0.03]
[1756663607267,13.21434369,205.05,205.04,0.03]
[1756663610979,8.33748439,205.05,205.04,0.03]
[1756663611273,4.05211926,205.05,205.04,0.03]
[1756663611472,41.61211926,205.05,205.04,0.03]
[1756663611676,4.05211926,205.05,205.04,0.03]
[1756663613085,4.71211926,205.05,205.04,0.03]
[1756663613677,4.05211926,205.05,205.04,0.03]
[1756663614381,4.71211926,205.05,205.04,0.03]
[1756663615167,42.27211926,205.05,205.04,0.03]
[1756663615367,41.61211926,205.05,205.04,0.03]
[1756663615570,42.27211926,205.05,205.04,0.03]
[1756663617182,38.22,205.05,205.04,0.03]
[1756663617388,42.27211926,205.05,205.04,0.03]
[1756663617561,4.93662886,205.06,205.04,0.03]
[1756663617562,0.06,205.06,205.04,4.14211926]
[1756663617884,0.06,205.06,205.05,4.05211926]
[1756663618097,0.06,205.06,205.04,2.68276616]
[1756663618280,0.06,205.06,205.05,16.24836017]
[1756663619281,0.06,205.06,205.05,21.12521947]
[1756663620081,0.06,205.06,205.05,22.58169602]
[1756663620582,0.06,205.09,205.06,13.59559401]
[1756663620761,0.06,205.09,205.08,4.04924271]
[1756663620962,0.06,205.09,205.08,43.64483672]
[1756663621268,1e-08,205.09,205.08,48.58098261]
[1756663621662,1e-08,205.09,205.08,53.1178399]
[1756663622371,0.06,205.1,205.09,13.59559401]
[1756663622372,1e-08,205.1,205.09,13.59559401]
[1756663622564,1e-08,205.1,205.09,21.75407943]
[1756663623184,1e-08,205.1,205.09,26.62998756]
[1756663623406,1e-08,205.1,205.09,64.22998756]
[1756663623584,1e-08,205.1,205.09,78.88164456]
[1756663626505,1e-08,205.12,205.11,26.0]
[1756663626664,1e-08,205.12,205.11,44.19237998]
[1756663626871,0.06,205.16,205.14,39.59559401]
[1756663627085,0.06,205.16,205.14,81.73230869]
[1756663627285,0.06,205.18,205.17,39.59559401]
[1756663627494,0.06,205.18,205.17,43.64483672]
[1756663627677,0.06,205.18,205.17,43.70483672]
[1756663628072,1e-08,205.18,205.17,50.53173064]
[1756663628571,1e-08,205.18,205.17,54.58097335]
[1756663628776,1e-08,205.18,205.17,50.53173064]
[1756663629305,1e-08,205.19,205.18,21.69407943]
[1756663629475,1e-08,205.19,205.18,59.84145636]
[1756663629870,1e-08,205.19,205.18,55.79221365]
[1756663630087,1e-08,205.19,205.18,60.66598302]
[1756663631678,1e-08,205.19,205.18,62.61867902]
[1756663633880,1e-08,205.19,205.18,62.55867902]
[1756663637988,0.06,205.2,205.18,62.55867902]
[1756663637989,0.06,205.21,205.2,39.59559401]
[1756663638188,0.06,205.21,205.2,85.23407943]
[1756663638580,0.06,205.21,205.2,99.87929943]
[1756663640708,0.06,205.21,205.2,104.75259377]
[1756663643087,0.06,205.22,205.21,13.59559401]
[1756663643288,22.65630635,205.23,205.21,17.64483672]
[1756663643588,22.65630635,205.23,205.22,55.16483672]
[1756663643796,0.06,205.24,205.23,39.59559401]
[1756663643999,1e-08,205.24,205.23,18.19209491]
[1756663644299,1e-08,205.25,205.24,39.59559401]
[1756663644501,1e-08,205.25,205.24,81.22483672]
[1756663644890,1e-08,205.25,205.24,83.17696072]
[1756663645427,1e-08,205.25,205.24,88.04930529]
[1756663645999,1e-08,205.25,205.24,88.53653974]
[1756663650212,1e-08,205.25,205.24,46.90729703]
[1756663650404,0.72000001,205.25,205.24,88.00930529]
[1756663650705,0.72000001,205.25,205.24,20.42006258]
[1756663650906,0.72000001,205.25,205.24,13.59559401]
[1756663651207,0.72000001,205.25,205.23,42.45256155]
[1756663651385,0.72,205.24,205.23,42.45256155]
[1756663653319,0.72,205.24,205.23,56.04815556]
[1756663653620,0.72,205.24,205.23,60.09739827]
[1756663656115,0.72,205.24,205.23,18.46815556]
[1756663656294,0.72,205.24,205.23,56.02815556]
[1756663657098,1e-08,205.25,205.24,13.59559401]
[1756663657300,1e-08,205.25,205.24,17.64483672]
[1756663658212,1e-08,205.25,205.24,22.51718129]
[1756663660222,1e-08,205.25,205.24,60.07718129]
[1756663660426,0.67000001,205.25,205.24,60.07718129]
[1756663660621,0.67000001,205.25,205.24,56.02793858]
[1756663660824,0.67000001,205.25,205.24,60.05718129]
[1756663664122,1e-08,205.25,205.24,60.05718129]
[1756663664430,0.67000001,205.25,205.24,60.05718129]
[1756663665426,0.67000001,205.25,205.24,60.08718129]
[1756663671444,0.67000001,205.25,205.24,0.03]
[1756663672531,4.71924272,205.25,205.24,0.03]
[1756663674444,0.67000001,205.25,205.24,0.03]
[1756663677945,4.71924272,205.25,205.24,0.03]
[1756663678235,9.5913499,205.25,205.24,0.03]
[1756663679747,4.71924272,205.25,205.24,0.03]
[1756663682056,1e-08,205.25,205.24,0.03]
[1756663682240,1e-08,205.25,205.24,4.75924271]
[1756663683365,1e-08,205.25,205.24,9.63158728]
[1756663688140,1e-08,205.25,205.24,11.58380628]
[1756663688844,1e-08,205.25,205.24,12.07104073]
[1756663691051,0.1,205.3,205.28,39.59559401]
[1756663691273,0.1,205.3,205.27,26.0]
[1756663691274,0.1,205.3,205.29,55.12483672]
[1756663691954,0.1,205.3,205.29,55.80483672]
[1756663693154,0.1,205.3,205.29,60.67599459]
[1756663693952,0.1,205.3,205.29,62.62773759]
[1756663694987,0.1,205.31,205.3,39.59559401]
[1756663695277,0.1,205.31,205.3,53.24500003]
[1756663697064,0.06,205.33,205.32,43.64483672]
[1756663697380,0.06,205.33,205.32,86.67528285]
[1756663697964,0.06,205.33,205.32,101.31049985]
[1756663700292,0.06,205.33,205.32,100.63049985]
[1756663701193,0.06,205.33,205.32,101.31049985]
[1756663703798,0.06,205.33,205.32,100.63049985]
[1756663707807,0.77,205.33,205.32,59.10125714]
[1756663707985,0.77,205.33,205.32,48.51528285]
[1756663708186,0.77,205.33,205.32,85.95528285]
[1756663709298,0.06,205.33,205.32,85.95528285]
[1756663709986,0.77,205.33,205.32,85.95528285]
[1756663710714,0.77,205.33,205.32,18.46604014]
[1756663710886,0.77,205.33,205.32,55.92604014]
[1756663713182,0.77,205.33,205.32,37.46]
[1756663714707,0.77,205.33,205.32,42.33044613]
[1756663716509,0.77,205.33,205.32,37.44]
[1756663718394,0.06,205.33,205.32,59.95528285]
[1756663719091,0.06,205.33,205.32,60.61528285]
[1756663719290,0.06,205.33,205.32,62.56673985]
[1756663719511,1e-08,205.33,205.32,62.56673985]
[1756663719717,1e-08,205.33,205.32,63.05378446]
[1756663722092,1e-08,205.33,205.32,62.56673985]
[1756663726100,1e-08,205.33,205.32,61.90673985]
[1756663727096,1e-08,205.33,205.32,24.46673985]
[1756663727297,1e-08,205.33,205.32,61.90673985]
[1756663728508,0.65000001,205.33,205.32,24.46673985]
[1756663728715,0.65000001,205.33,205.32,55.90604014]
[1756663728911,0.65000001,205.33,205.32,55.92604014]
[1756663731328,1e-08,205.33,205.32,59.97528285]
[1756663734211,1e-08,205.33,205.32,61.92683585]
[1756663734415,1e-08,205.33,205.32,59.97528285]
[1756663734617,0.65000001,205.33,205.32,59.97528285]
[1756663736230,0.65000001,205.33,205.32,60.00528285]
[1756663736638,1e-08,205.33,205.32,60.00528285]
[1756663738328,0.65000001,205.33,205.32,60.00528285]
[1756663740724,1e-08,205.33,205.32,60.00528285]
[1756663743826,0.66000001,205.33,205.32,55.95604014]
[1756663744148,0.66000001,205.33,205.32,60.00528285]
[1756663744838,1e-08,205.33,205.32,60.00528285]
[1756663745616,1e-08,205.33,205.32,22.54528285]
[1756663745825,1e-08,205.33,205.32,59.96528285]
[1756663748344,0.66000001,205.33,205.32,18.49604014]
[1756663748541,0.66000001,205.33,205.32,55.91604014]
[1756663749236,0.66000001,205.33,205.32,13.62559401]
[1756663749541,0.66000001,205.33,205.32,51.04559401]
[1756663750041,4.70924272,205.33,205.32,37.45]
[1756663751123,4.70924272,205.33,205.32,0.03]
[1756663752324,0.66000001,205.33,205.32,0.03]
[1756663755268,0.66000001,205.33,205.32,13.62559401]
[1756663755435,1e-08,205.33,205.32,17.67483672]
[1756663755840,1e-08,205.33,205.32,19.62657972]
[1756663756536,1e-08,205.33,205.32,24.49702585]
[1756663757657,0.66000001,205.33,205.32,20.44778314]
[1756663759352,1e-08,205.33,205.32,20.44778314]
[1756663762767,0.66000001,205.33,205.32,20.44778314]
[1756663763544,1e-08,205.33,205.32,20.44778314]
[1756663764970,0.66000001,205.33,205.32,20.44778314]
[1756663765142,4.70924272,205.33,205.32,0.03]
[1756663765344,0.66000001,205.33,205.32,0.03]
[1756663765545,4.70924272,205.33,205.32,0.03]
[1756663765750,0.66000001,205.33,205.32,0.03]
[1756663765944,1e-08,205.33,205.32,0.03]
[1756663766271,1e-08,205.33,205.32,55.91604014]
[1756663766441,1e-08,205.33,205.32,60.65528285]
[1756663766856,1e-08,205.33,205.32,65.36452585]
[1756663772869,1e-08,205.33,205.32,64.86452585]
[1756663775677,1e-08,205.36,205.35,39.59559401]
[1756663775872,1e-08,205.36,205.35,81.04483672]
[1756663776061,1e-08,205.36,205.35,81.53181017]
[1756663776377,1e-08,205.36,205.35,87.41233328]
[1756663776969,1e-08,205.36,205.35,83.48288717]
[1756663779055,1e-08,205.36,205.35,88.35262176]
[1756663779960,1e-08,205.36,205.35,89.05262176]
[1756663780278,1e-08,205.37,205.36,13.59559401]
[1756663780662,1e-08,205.37,205.36,17.64483672]
[1756663780972,1e-08,205.37,205.36,18.34483672]
[1756663781179,1e-08,205.37,205.36,23.21433418]
[1756663781368,1e-08,205.37,205.36,25.16541118]
[1756663781570,1e-08,205.37,205.36,24.46541118]
[1756663786891,0.67000001,205.37,205.36,24.46541118]
[1756663787108,1e-08,205.37,205.36,24.46541118]
[1756663787384,1e-08,205.37,205.36,61.86541118]
[1756663787684,1e-08,205.37,205.36,20.41616847]
[1756663787897,0.67000001,205.37,205.36,57.81616847]
[1756663791389,0.67000001,205.37,205.36,61.86541118]
[1756663791575,1e-08,205.37,205.36,61.86541118]
[1756663792293,0.67000001,205.37,205.36,61.86541118]
[1756663793595,0.67000001,205.37,205.36,24.46541118]
[1756663793900,0.67000001,205.37,205.36,61.86541118]
[1756663802011,0.67000001,205.37,205.36,60.40062588]
[1756663802714,1e-08,205.37,205.36,60.40062588]
[1756663803002,0.72000001,205.37,205.36,60.40062588]
[1756663803895,0.72000001,205.37,205.36,20.41616847]
[1756663804082,0.72000001,205.37,205.36,57.81616847]
[1756663804405,1e-08,205.37,205.36,61.12062588]
[1756663804808,1e-08,205.37,205.36,61.15062588]
[1756663805013,1e-08,205.37,205.36,60.43062588]
[1756663806585,1e-08,205.37,205.36,61.15062588]
[1756663807014,1e-08,205.37,205.36,60.43062588]
[1756663807716,0.72000001,205.37,205.36,23.03062588]
[1756663808019,0.72000001,205.37,205.36,60.43062588]
[1756663809114,1e-08,205.37,205.36,60.43062588]
[1756663813116,1e-08,205.37,205.36,57.84616847]
[1756663813307,1e-08,205.37,205.36,60.43062588]
[1756663814635,1e-08,205.37,205.36,57.84616847]
[1756663814821,1e-08,205.37,205.36,60.43062588]
[1756663825935,0.72000001,205.37,205.36,60.43062588]
[1756663826437,1e-08,205.37,205.36,60.43062588]
[1756663828540,0.72000001,205.37,205.36,60.43062588]
[1756663829836,1e-08,205.37,205.36,60.43062588]
[1756663830639,0.72000001,205.37,205.36,60.43062588]
[1756663831041,1e-08,205.37,205.36,60.43062588]
[1756663837157,1e-08,205.37,205.36,61.15062588]
[1756663837441,1e-08,205.37,205.36,60.43062588]
[1756663847937,1e-08,205.38,205.36,61.15062588]
[1756663848134,0.06,205.4,205.36,61.15062588]
[1756663848135,1e-08,205.4,205.39,39.59559401]
[1756663848345,1e-08,205.41,205.4,13.59559401]
[1756663848644,0.69,205.44,205.4,27.23788106]
[1756663848856,0.69,205.44,205.41,79.56005142]
[1756663849058,0.69,205.44,205.41,84.42836357]
[1756663849253,0.69,205.44,205.41,87.71535457]
[1756663850431,1e-08,205.42,205.41,24.33535457]
[1756663850732,1e-08,205.42,205.41,62.43535457]
[1756663852241,1e-08,205.42,205.41,61.71535457]
[1756663852544,0.69000001,205.42,205.41,61.71535457]
[1756663853232,1e-08,205.42,205.41,61.71535457]
[1756663856224,1e-08,205.42,205.41,59.13089716]
[1756663856453,1e-08,205.42,205.41,61.71535457]
[1756663858540,0.08897154,205.43,205.42,13.59559401]
[1756663858846,0.06,205.45,205.44,39.59559401]
[1756663859049,0.06,205.45,205.44,76.97559401]
[1756663859628,0.06,205.45,205.44,84.42765225]
[1756663860650,0.75,205.45,205.44,84.42765225]
[1756663864361,0.75,205.45,205.44,87.01210966]
[1756663866975,0.75,205.45,205.44,87.73210966]
[1756663866976,0.06,205.45,205.44,87.73210966]
[1756663867135,0.06,205.45,205.44,87.01210966]
[1756663869465,0.77,205.45,205.44,87.01210966]
[1756663869866,0.06,205.45,205.44,87.01210966]
[1756663870054,0.77,205.45,205.44,49.63210966]
[1756663870255,0.77,205.45,205.44,86.99210966]
[1756663871571,0.77,205.45,205.44,47.04765225]
[1756663871864,0.77,205.45,205.44,84.40765225]
[1756663875254,0.06,205.45,205.44,84.40765225]
[1756663877172,0.06,205.45,205.44,86.99210966]
[1756663878073,0.77,205.45,205.44,86.99210966]
[1756663878449,0.06,205.45,205.44,87.71210966]
[1756663882352,0.77,205.45,205.44,84.40765225]
[1756663882881,0.77,205.45,205.44,47.04765225]
[1756663883073,0.77,205.45,205.44,16.18005101]
[1756663883260,0.77,205.45,205.44,53.54005101]
[1756663883460,3.35445741,205.45,205.43,0.03]
[1756663883655,2.58445741,205.44,205.43,0.03]
[1756663883859,9.22064809,205.44,205.43,0.03]
[1756663884264,7.34619068,205.44,205.43,0.03]
[1756663884457,9.93064809,205.44,205.43,0.03]
[1756663887478,14.79824933,205.44,205.43,0.03]
[1756663887679,12.21379192,205.44,205.43,0.03]
[1756663887859,14.79824933,205.44,205.43,0.03]
[1756663888553,12.21379192,205.44,205.43,0.03]
[1756663888754,14.79824933,205.44,205.43,0.03]
[1756663891379,52.15824933,205.44,205.43,0.03]
[1756663895883,14.79824933,205.44,205.43,0.03]
[1756663896181,52.15824933,205.44,205.43,0.03]
[1756663896383,52.15066529,205.44,205.43,0.03]
[1756663897387,48.87651665,205.44,205.43,0.03]
[1756663902700,74.65534334,205.44,205.4,0.03]
[1756663902866,12.92228705,205.41,205.4,0.03]
[1756663903070,50.28228705,205.41,205.4,0.03]
[1756663903275,50.95228705,205.41,205.4,0.03]
[1756663903477,52.90412505,205.41,205.4,0.03]
[1756663903675,57.7724372,205.41,205.4,0.03]
[1756663904071,56.20342087,205.41,205.4,0.03]
[1756663908792,42.5827416,205.41,205.4,0.03]
[1756663908990,5.99302156,205.41,205.4,0.73]
[1756663909295,43.35302156,205.41,205.4,0.73]
[1756663909490,5.99302156,205.41,205.4,0.73]
[1756663912230,11.53133371,205.41,205.4,0.03]
[1756663912376,15.57251727,205.41,205.4,0.03]
[1756663913480,11.53133371,205.41,205.4,0.03]
[1756663913686,10.86133371,205.41,205.4,0.03]
[1756663914084,11.53133371,205.41,205.4,0.03]
[1756663914608,7.49015015,205.41,205.4,0.03]
[1756663914914,48.22133371,205.41,205.4,0.03]
[1756663916307,43.35302156,205.41,205.4,0.73]
[1756663917509,4.04118356,205.41,205.4,0.73]
[1756663918004,41.40118356,205.42,205.4,0.73]
[1756663918605,41.40118356,205.42,205.41,0.7]
[1756663918789,6.91079,205.44,205.41,0.7]
[1756663918980,0.06,205.44,205.41,0.7]
[1756663919180,0.06,205.44,205.41,9.639732]
[1756663919384,0.06,205.44,205.42,0.7]
[1756663919609,4.10118356,205.44,205.42,0.7]
[1756663920897,0.06,205.44,205.42,0.7]
[1756663921786,4.04118356,205.43,205.41,8.939732]
[1756663921991,4.04118356,205.42,205.4,0.74]
[1756663922312,4.04118356,205.41,205.4,0.74]
[1756663922608,4.04118356,205.42,205.41,0.71]
[1756663925012,37.42,205.44,205.41,0.71]
[1756663925197,4.04118356,205.43,205.42,0.71]
[1756663925395,4.75118356,205.43,205.4,0.03]
[1756663925714,4.04118356,205.42,205.4,0.03]
[1756663926296,4.04118356,205.42,205.41,0.71]
[1756663926506,4.04118356,205.42,205.4,0.03]
[1756663926709,4.04118356,205.42,205.4,0.74]
[1756663927221,4.04118356,205.42,205.41,0.71]
[1756663927906,4.04118356,205.42,205.41,0.74]
[1756663928609,4.04118356,205.42,205.41,0.03]
[1756663929528,42.11118356,205.42,205.41,0.03]
[1756663929696,49.43020854,205.42,205.41,0.03]
[1756663930018,64.06899654,205.42,205.41,0.03]
[1756663930192,68.9370717,205.42,205.41,0.03]
[1756663930390,27.53588814,205.42,205.41,0.03]
[1756663930598,64.89588814,205.42,205.41,0.03]
[1756663934022,68.9370717,205.42,205.41,0.03]
[1756663935590,68.9370717,205.42,205.4,0.03]
[1756663935812,11.36020854,205.41,205.4,0.03]
[1756663936328,12.07020854,205.41,205.4,0.03]
[1756663936815,16.93852069,205.41,205.4,0.03]
[1756663937612,54.29852069,205.41,205.4,0.03]
[1756663940212,56.25064469,205.41,205.4,0.03]
[1756663942228,54.29852069,205.41,205.4,0.03]
[1756663943242,56.25064469,205.41,205.4,0.03]
[1756663943927,44.67902498,205.41,205.4,0.74]
[1756663944514,7.31902498,205.41,205.4,0.74]
[1756663944736,41.40118356,205.42,205.4,0.74]
[1756663944918,4.04118356,205.42,205.4,0.74]
[1756663946241,0.06,205.41,205.4,0.74]
[1756663947922,0.06,205.41,205.4,5.60854917]
[1756663951138,0.06,205.41,205.4,0.74]
[1756663952047,4.10118356,205.41,205.4,0.74]
[1756663952428,0.06,205.41,205.4,0.74]
[1756663952745,0.06,205.41,205.4,5.60854917]
[1756663954545,0.06,205.41,205.4,0.74]
[1756663955147,0.06,205.41,205.4,0.03]
[1756663955324,4.76118356,205.41,205.4,0.03]
[1756663956026,4.10118356,205.41,205.4,0.03]
[1756663956423,4.76118356,205.41,205.4,0.03]
[1756663957944,9.62949571,205.41,205.4,0.03]
[1756663960467,5.58831215,205.41,205.4,0.03]
[1756663960632,9.62949571,205.41,205.4,0.03]
[1756663963752,46.98949571,205.41,205.4,0.03]
[1756663969261,0.06,205.41,205.4,0.73]
[1756663969467,37.42,205.41,205.4,0.73]
[1756663972646,37.42,205.41,205.4,0.03]
[1756663973364,37.42,205.41,205.4,0.73]
[1756663974065,0.06,205.41,205.4,0.73]
[1756663978767,0.06,205.41,205.4,0.03]
[1756663978956,4.10118356,205.41,205.4,0.03]
[1756663980746,4.10118356,205.41,205.4,0.73]
[1756663980947,4.10118356,205.41,205.4,0.03]
[1756663983091,4.78118356,205.41,205.4,0.03]
[1756663984572,9.64949571,205.41,205.4,0.03]
[1756663985276,12.91933797,205.41,205.4,0.03]
[1756663987676,12.23933797,205.41,205.4,0.03]
[1756663987985,3.32984226,205.41,205.4,0.03]
[1756663988485,3.33280053,205.41,205.4,0.03]
[1756663989358,3.33280053,205.41,205.4,0.75]
[1756663990274,3.33280053,205.41,205.4,0.03]
[1756663993479,3.33280053,205.41,205.4,0.75]
[1756663994558,3.33280053,205.41,205.4,0.03]
[1756663994871,7.37398409,205.41,205.4,0.03]
[1756663995046,8.05398409,205.41,205.4,0.03]
[1756663995252,4.01280053,205.41,205.4,0.03]
[1756663995452,8.05398409,205.41,205.4,0.03]
[1756663995671,12.92229624,205.41,205.4,0.03]
[1756663998660,8.88111268,205.41,205.4,0.03]
[1756663998855,12.24229624,205.41,205.4,0.03]
[1756663999763,12.92229624,205.41,205.4,0.03]
[1756663999967,11.4671922,205.41,205.4,0.03]
[1756664000562,13.4191252,205.41,205.4,0.03]
[1756664001971,14.87382179,205.41,205.4,0.03]
[1756664003380,10.83304568,205.41,205.4,0.03]
[1756664003554,14.87382179,205.41,205.4,0.03]
[1756664006984,10.15304568,205.41,205.4,0.75]
[1756664007164,49.60188879,205.41,205.4,0.75]
[1756664008279,49.60188879,205.41,205.4,0.03]
[1756664008486,50.28188879,205.41,205.4,0.03]
[1756664008670,47.51285568,205.41,205.4,0.03]
[1756664008988,51.55363179,205.41,205.4,0.03]
[1756664014690,52.21363179,205.41,205.4,0.03]
[1756664018698,48.17285568,205.41,205.4,0.03]
[1756664018872,52.21363179,205.41,205.4,0.03]
[1756664019070,5.28454353,205.41,205.4,0.03]
[1756664019274,88.69037658,205.41,205.4,0.74]
[1756664021204,92.73115269,205.41,205.4,0.03]
[1756664024098,92.73115269,205.41,205.4,0.74]
[1756664024099,88.69037658,205.41,205.4,0.74]
[1756664024296,53.91547663,205.41,205.4,0.74]
[1756664024496,91.27547663,205.41,205.4,0.74]